Cogmind - Beta 17 @@@ ROGUE MODE // 2026.07.12 @ 19:31:45 Player: President Manblast Result: Destroyed by S-43 Plague with Heavy Machine Gun Performance ------------- Evolutions (9) 4500 Regions Visited (12) 2400 Robots Destroyed (119) 595 Value Destroyed (6379) 6379 Prototype IDs (37) 740 Alien Tech Used (0) 0 Bonus (7024) 7024 TOTAL SCORE: 21638 Bonus ------- High Alert Combat Kills 542 Follower Combat Kills 2682 Entered Garrisons 200 Registered with UFD 300 Met Optimus in HQ 500 Built Enhanced Grunts 300 Met R17 at Cetus 500 Met R17 at Research 2000 Cogmind --------- Core Integrity 0/1600 Matter 121/300 Energy 99/100 System Corruption 1% Temperature Cool (0) Movement Core (50) Location -1/Garrison Parts ------- > --- POWER (2) -------- (None) > --- PROPULSION (6) --- (None) > --- UTILITY (12) ----- Advanced Signal Interpreter Advanced Signal Interpreter > --- WEAPON (5) ------- (None) > --- INVENTORY (5) ---- Biometal Heavy Treads Advanced Heavy Siege Treads Peak State ------------ > --- POWER ------------ Quantum Reactor Light Quantum Reactor > --- PROPULSION ------- Myomer Leg Advanced Myomer Leg Myomer Exoskeleton > --- UTILITY ---------- Large Storage Unit Advanced Sensor Array Advanced Signal Interpreter Advanced Terrain Scan Processor Advanced Melee Analysis Suite Advanced Melee Analysis Suite Improved Target Analyzer Core Analyzer Layered Medium Armor Plating Centrium Light Armor Plating Centrium Light Armor Plating Graphene Brace > --- WEAPON ----------- Power Maul Companion Sword Phasing Sabre Phasing Sabre > --- INVENTORY -------- Neutrino Core Quantum Reactor Myomer Leg Myomer Leg Myomer Leg Myomer Leg Myomer Leg Centrium Wheel Advanced Visual Processing Unit Advanced Terrain Scanner Centrium Medium Armor Plating Hellfire Missile Launcher Heavy Pick [Rating: 166] Favorites ----------- Power Light Angular Momentum Engine Engine Light Angular Momentum Engine Power Core Reinforced Fission Core Reactor Light Antimatter Reactor Propulsion Flexi-carbon Leg Treads Light Treads Leg Flexi-carbon Leg Wheel Wheel Flight Unit Field Propulsion Array Utility Advanced Melee Analysis Suite Device Seismic Detector Storage Large Storage Unit Processor Advanced Melee Analysis Suite Hackware Hacking Suite Protection Improved Medium Armor Plating Weapon Companion Sword Energy Gun Gatling Laser Energy Cannon Enhanced Nova Cannon Ballistic Gun Assault Rifle Ballistic Cannon Light Cannon Launcher Hellfire Missile Launcher Special Weapon Improved Remote Datajack Impact Weapon Power Maul Slashing Weapon Companion Sword Piercing Weapon Heavy Pick Build | -11 -10 -10 -7 -5 -4 -4 -4 -3 -3 -2 -1 -1 ------- Run | Yrd Mat Sub Scr Fac Fac Ext Cet Res Tes Res Acc Gar Slots Evolved 18 | . . . . 10 2 . . 2 . 2 2 . Power 1 | . . . . . 1 . . . . . . . Propulsion 4 | . . . . 2 . . . 1 . . 1 . Utility 10 | . . . . 6 1 . . 1 . 2 . . Weapon 3 | . . . . 2 . . . . . . 1 . Parts Attached 190 | 8 5 12 12 42 25 22 12 10 14 14 13 1 Power 29 | 1 1 1 1 6 5 6 1 1 1 2 3 . Engine 5 | 1 1 1 1 1 . . . . . . . . Core 8 | . . . . 4 . 4 . . . . . . Reactor 16 | . . . . 1 5 2 1 1 1 2 3 . Propulsion 51 | 2 . 1 5 9 7 4 6 3 4 5 4 1 Treads 6 | 2 . 1 1 . . . . . . 2 . . Leg 39 | . . . 2 9 7 4 6 3 4 3 1 . Wheel 2 | . . . 2 . . . . . . . . . Hover . | . . . . . . . . . . . . . Flight 4 | . . . . . . . . . . . 3 1 Utility 75 | 2 2 3 1 22 10 8 4 6 6 5 6 . Device 31 | 1 . 1 . 11 5 2 1 3 2 3 2 . Storage 3 | 1 1 . . . . . . . 1 . . . Processor 17 | . . . . 5 4 1 1 2 1 . 3 . Hackware 1 | . . . . . . . . . . . 1 . Protection 23 | . 1 2 1 6 1 5 2 1 2 2 . . Artifact . | . . . . . . . . . . . . . Weapon 35 | 3 2 7 5 5 3 4 1 . 3 2 . . Energy Gun 4 | 1 . 2 1 . . . . . . . . . Energy Cannon 2 | . . . . 1 . . . . . 1 . . Ballistic Gun 5 | 2 . 2 . 1 . . . . . . . . Ballistic Cannon 3 | . 2 . 1 . . . . . . . . . Launcher 4 | . . 2 . . . . . . 2 . . . Special Weapon 2 | . . 1 . 1 . . . . . . . . Impact Weapon 4 | . . . 1 . . . 1 . 1 1 . . Slashing Weapon 7 | . . . 2 . 1 4 . . . . . . Piercing Weapon 4 | . . . . 2 2 . . . . . . . Special Melee Weapon . | . . . . . . . . . . . . . Unidentified Prototypes 22 | . . . 1 3 3 . 1 3 10 . 1 . Corrupted Parts 1 | . . . . . . 1 . . . . . . System Corruption 4 | . . . . . . 4 . . . . . . Parts Lost 83 | . . 6 . 17 18 3 3 1 1 24 7 3 Power 12 | . . . . 2 3 1 . 1 . 4 1 . Propulsion 22 | . . 1 . 5 6 1 2 . . 3 3 1 Utility 32 | . . 2 . 7 5 . 1 . 1 12 2 2 Weapon 17 | . . 3 . 3 4 1 . . . 5 1 . Highest Loss Streak 12 | . . 3 . 7 8 2 3 1 1 12 7 3 To Critical Strikes 2 | . . . . . . 1 1 . . . . . Average Backups 13 | 4 12 14 14 13 14 14 14 14 15 12 2 2 Power . | . 1 1 . 1 . . 1 1 1 1 . . Propulsion 3 | 2 4 4 4 3 3 2 4 6 6 5 1 2 Utility 3 | . 2 2 2 3 3 4 4 5 6 3 . . Weapon 5 | 1 5 6 7 5 6 5 3 2 2 1 . . Tool/Special . | . . . . . . . . . . . . . Unused Backups 39 | 2 3 2 10 3 3 2 6 4 2 1 . 1 Power 5 | . . 1 1 2 . . 1 . . . . . Propulsion 19 | 2 2 . 5 . 1 1 4 1 1 1 . 1 Utility 4 | . . 1 . 1 1 . . 1 . . . . Weapon 11 | . 1 . 4 . 1 1 1 2 1 . . . Tool/Special . | . . . . . . . . . . . . . Average Slot Usage (%) 91 | . 100 99 95 82 88 95 99 93 88 78 49 28 Engine 5 | . 14 14 14 . . . . . . . . . Core 1 | . . . . 3 3 5 5 . . . . . Reactor 2 | . . . . . 4 4 4 7 7 5 6 . Treads 7 | . 28 27 11 . . . . . . . . . Leg 13 | . . . 6 22 20 20 20 17 14 11 1 . Wheel 2 | . . . 10 . . . . . . . . . Device 4 | . 12 5 . 9 7 . . 2 3 8 6 5 Storage 8 | . 14 14 14 5 5 5 5 4 4 3 . . Processor 16 | . . . . 14 26 35 31 32 33 24 18 18 Protection 7 | . 1 8 14 6 4 4 9 5 4 6 . . Energy Gun 1 | . . 4 7 . . . . . . . . . Ballistic Gun 2 | . 14 9 . . . . . . . . . . Ballistic Cannon 3 | . 13 12 7 . . . . . . . . . Slashing Weapon 9 | . . . 8 10 8 17 16 14 12 9 . . Peak Build Rating 166 | 7 8 10 30 92 104 107 119 132 153 166 115 39 Average Rating 67 | 5 7 9 22 69 93 102 114 126 137 139 97 34 On Entrance 62 | . 7 8 9 29 89 76 105 119 124 148 55 38 Avg Prop Armor Cover (%) 10 | . . . 9 . 7 . . . . 33 29 . Naked Turns . | . . . . . . . . . . . . . Heaviest Build 90 | 14 32 35 46 63 73 77 90 84 83 86 45 2 Greatest Support 145 | 40 40 40 40 90 98 95 90 110 145 145 75 5 Greatest Overweight (x) 4 | 2 . . 4 . . 1 1 . . . 4 . Average Overweight (x) . | . . . 3 . . . . . . . . . Largest Inventory Capacity 15 | 8 15 15 15 15 15 15 15 15 15 15 5 5 Average Capacity 14 | 7 14 15 15 15 15 15 15 15 15 14 5 5 Most Carried 15 | 8 15 15 15 15 15 15 15 15 15 15 5 5 Average Carried 13 | 4 13 14 14 13 14 14 14 14 14 12 3 4 Final Capacity 15 | 8 15 15 15 15 15 15 15 15 15 5 5 5 Final Carried 15 | 6 15 15 15 15 15 15 15 15 15 4 5 4 Scrap Suit Usage (%) 1 | . . . . 6 . . . . . . . . Parts Cannibalized 4 | . . . . 4 . . . . . . . . Class Distribution -------------------- 39% | Mutant 20% | Gladiator 18% | Commander-Gladiator 16% | Scavenger-Gladiator Dominant Class ---------------- Mutant | -10/Materials Mutant | -10/Subcaves Mutant | -7/Scraptown Gladiator | -5/Factory Gladiator | -4/Factory Commander-Gladiator | -4/Extension Commander-Gladiator | -4/Cetus Commander-Gladiator | -3/Research Scavenger-Gladiator | -3/Testing Scavenger-Gladiator | -2/Research Mutant | -1/Access Mutant | -1/Garrison Resources | -11 -10 -10 -7 -5 -4 -4 -4 -3 -3 -2 -1 -1 ----------- Run | Yrd Mat Sub Scr Fac Fac Ext Cet Res Tes Res Acc Gar Matter Collected 3253 | 286 250 270 269 621 291 354 187 189 276 125 115 20 Remotely 104 | . . . . 104 . . . . . . . . Salvage Created 6349 | 31 289 247 . 1585 1230 979 361 301 369 779 178 . Parts 321 | 8 19 13 . 75 69 40 20 10 18 40 9 . Haulers Intercepted . | . . . . . . . . . . . . . Recyclers Shooed 1 | . . . . . . 1 . . . . . . Parts Field Recycled . | . . . . . . . . . . . . . Retrieved Matter . | . . . . . . . . . . . . . Parts Self-Destructed . | . . . . . . . . . . . . . Prevented . | . . . . . . . . . . . . . Parts Restored . | . . . . . . . . . . . . . Kills | -11 -10 -10 -7 -5 -4 -4 -4 -3 -3 -2 -1 -1 ------- Run | Yrd Mat Sub Scr Fac Fac Ext Cet Res Tes Res Acc Gar Combat Hostiles Destroyed 97 | . 8 9 . 22 19 10 6 4 4 13 2 . Melee 70 | . . . . 22 19 10 6 4 3 6 . . Guns 9 | . 6 3 . . . . . . . . . . Cannons 8 | . 2 4 . . . . . . . . 2 . AOE 9 | . . 2 . . . . . . . 7 . . Classes Destroyed 14 | 1 3 1 . 4 2 . . 1 . 2 . . Worker 2 | . . . . . . . . . . 2 . . Builder 3 | . . . . . 1 1 . . . 1 . . Tunneler 2 | 2 . . . . . . . . . . . . Recycler 6 | . . . . 2 1 2 . . 1 . . . Mechanic 2 | . . . . . 1 . . . . 1 . . Operator 2 | . . . . . . . . 1 1 . . . Watcher 5 | . 3 . . . . . 1 . . . 1 . Swarmer 12 | . 3 . . 1 5 1 2 . . . . . Grunt 28 | . 5 . . 7 6 5 . . . 5 . . Brawler 1 | . . . . . . . . . . 1 . . Sentry 10 | . . . . 3 . 4 . 2 . . 1 . Hunter 15 | . . . . 4 2 . 2 2 3 2 . . Programmer 20 | . . . . 7 6 . . . 1 5 1 . Cetus Guard 2 | . . . . . . . 2 . . . . . Subdweller 9 | . . 9 . . . . . . . . . . Best Kill Streak 7 | 2 4 3 . 4 5 2 2 3 2 7 1 . Combat Bots Only 5 | . 3 3 . 4 5 2 2 3 2 4 1 . Max Kills in Single Turn 5 | 1 1 1 . 1 1 1 1 1 1 5 1 . Gunslinging . | . . . . . . . . . . . . . Exploded 2 | . . 1 . . . . . . . 2 . . Melee 1 | . . . . 1 1 1 1 1 1 1 . . Uniques/NPCs Destroyed . | . . . . . . . . . . . . . Combat | -11 -10 -10 -7 -5 -4 -4 -4 -3 -3 -2 -1 -1 -------- Run | Yrd Mat Sub Scr Fac Fac Ext Cet Res Tes Res Acc Gar Hostile Shots Fired 1505 | . 36 57 . 268 296 107 60 25 51 391 128 86 Missed 522 | . 7 23 . 66 95 44 20 5 20 151 55 36 Hits 983 | . 29 34 . 202 201 63 40 20 31 240 73 50 Melee 7 | . . . . . 3 . . . . 3 . 1 Projectile 976 | . 29 34 . 202 198 63 40 20 31 237 73 49 AOE 6 | . . . . 3 3 . . . . . . . Critical Strikes 60 | . 1 1 . 15 8 7 5 . 3 12 2 6 Actively Blocked 18 | . . . . . . . . . . 12 2 4 Part Disruptions 1 | . . . . . 1 . . . . . . . Damage Taken 20053 | . 347 724 . 4240 3455 1142 911 625 613 5293 1603 1100 Core 3838 | . 62 95 . 478 467 178 116 67 107 650 633 985 Absorbed by Shields 644 | . . . . . 30 403 211 . . . . . Redirected to Shielding 75 | . 14 61 . . . . . . . . . . Ignored by Resistances 73 | . . . . . 73 . . . . . . . Regen/Repaired (Parts) 525 | . . . . 249 276 . . . . . . . Core Remaining (%) 60 | 100 . . 37 52 . . 33 . 86 55 . . Volleys Fired 121 | 6 33 39 . . . . . . . 6 37 . Largest 2 | 1 2 2 . . . . . . . 1 1 . Hottest 120 | 40 60 100 . . . . . . . 60 120 . Shots Fired 181 | 6 66 67 . . . . . . . 5 37 . Gun 78 | 6 44 28 . . . . . . . . . . Cannon 79 | . 22 20 . . . . . . . . 37 . Launcher 15 | . . 10 . . . . . . . 5 . . Special 9 | . . 9 . . . . . . . . . . Kinetic 103 | . 66 37 . . . . . . . . . . Thermal 63 | 6 . 20 . . . . . . . . 37 . Explosive 15 | . . 10 . . . . . . . 5 . . Electromagnetic . | . . . . . . . . . . . . . Robot Hit Streak 19 | 2 8 19 . . . . . . . 10 14 . Robot Miss Streak 5 | 2 5 1 . . . . . . . . 2 . Penetration Max . | . . . . . . . . . . . . . Secondary Targets . | . . . . . . . . . . . . . Shots Hit Robots 392 | 3 40 44 . 87 64 45 17 12 18 44 18 . Core Hits 183 | 2 17 21 . 35 30 20 10 5 8 30 4 1 Critical Kills 2 | . . 1 . . . . . . . . 1 . Critical Parts Destroyed 2 | . . . . . . . . . 1 1 . . Critical Strikes 27 | . . 3 . 1 6 5 . 2 3 6 1 . Meltdown 1 | . . . . . . . . . . . 1 . Destroy 2 | . . 2 . . . . . . . . . . Blast 1 | . . 1 . . . . . . . . . . Smash 2 | . . . . . . . . . 1 1 . . Sever 11 | . . . . 1 . 3 . . 2 5 . . Impale 2 | . . . . . 2 . . . . . . . Melee Attacks 389 | . . . . 121 83 57 18 19 31 60 . . Impact 15 | . . . . . . . 1 2 3 9 . . Slashing 354 | . . . . 121 71 57 17 17 28 43 . . Piercing 20 | . . . . . 12 . . . . 8 . . Sneak Attacks 17 | . . . . 3 3 6 . 1 3 1 . . Combat Hostiles . | . . . . . . . . . . . . . Follow-up Attacks 56 | . . . . 13 11 13 6 1 5 7 . . Damage Inflicted 16933 | 34 535 1043 . 3831 2968 2214 741 588 990 3201 779 9 Guns 830 | 32 384 414 . . . . . . . . . . Cannons 1207 | . 148 280 . . . . . . . . 779 . Explosions 1794 | . . 349 . . . . . . . 1445 . . Melee 13039 | . . . . 3823 2962 2187 741 588 990 1748 . . Ramming 63 | 2 3 . . 8 6 27 . . . 8 . 9 Kinetic 1022 | . 532 490 . . . . . . . . . . Thermal 1015 | 32 . 204 . . . . . . . . 779 . Explosive 1794 | . . 349 . . . . . . . 1445 . . Electromagnetic . | . . . . . . . . . . . . . Impact 534 | . . . . . . . 59 . 177 298 . . Slashing 12016 | . . . . 3823 2678 2187 682 588 813 1245 . . Piercing 489 | . . . . . 284 . . . . 205 . . Highest Corruption 19 | . . . . 12 8 8 6 . 1 19 . 1 Average Corruption 5 | . . . . 4 5 5 6 . 1 15 . 1 Corruption Purged 8 | . . . . . . 8 . . . . . . Corruption Blocked . | . . . . . . . . . . . . . Effects 166 | . . . . 61 18 34 36 . 2 15 . . Message Errors 42 | . . . . 21 4 6 8 . 1 2 . . Matter Fused 44 | . . . . 12 5 11 8 . 1 7 . . Heat Flow Errors 18 | . . . . 7 3 3 5 . . . . . Energy Discharges 23 | . . . . 9 3 6 4 . . 1 . . Parts Rejected 4 | . . . . . 1 . 1 . . 2 . . Parts Fused 1 | . . . . . . . 1 . . . . . Data Loss (minor) 23 | . . . . 7 2 5 7 . . 2 . . Data Loss (major) 5 | . . . . 3 . 2 . . . . . . Alerts 5 | . . . . 2 . 1 2 . . . . . Weapon Failures 1 | . . . . . . . . . . 1 . . Overload Shots . | . . . . . . . . . . . . . Overflow Damage 821 | . . . . 116 59 107 12 87 141 288 11 . Projectiles 11 | . . . . . . . . . . . 11 . Explosions 142 | . . . . . . . . . . 142 . . Melee 668 | . . . . 116 59 107 12 87 141 146 . . Knockbacks 9 | . 3 2 . . . . . . 2 2 . . Impact 3 | . . . . . . . . . 1 2 . . Kinetic 5 | . 3 2 . . . . . . . . . . Secondary 1 | . . . . . . . . . 1 . . . Self-Inflicted Damage 60 | . . . . . . . . . . 56 . 4 Shots 1 | . . . . . . . . . . 1 . . Rammed 5 | 1 1 . . . . . . . . . . 3 Targets Rammed 16 | 1 1 . . 1 1 2 . . . 7 . 3 Kicked 11 | . . . . 1 1 2 . . . 7 . . Crushed . | . . . . . . . . . . . . . Highest Temperature 393 | . 81 . . 284 269 258 284 . . 8 393 . Average Temperature 112 | . 34 . . 96 114 109 104 . . 7 134 . Received Heat Transfer 2212 | . 174 81 . 766 460 248 114 9 . 189 117 54 Effects 3 | . . . . . . . . . . . 3 . Shutdowns 2 | . . . . . . . . . . . 2 . Interference 1 | . . . . . . . . . . . 1 . Siege Activations . | . . . . . . . . . . . . . Martial Activations . | . . . . . . . . . . . . . Shielding Activations . | . . . . . . . . . . . . . Robots Disrupted 2 | . . . . . . 1 . . 1 . . . Combat Hostiles 2 | . . . . . . 1 . . 1 . . . Robots Corrupted 1 | . . . . . . . . . 1 . . . Combat Hostiles 1 | . . . . . . . . . 1 . . . Parts Fried 1 | . . . . . . . . . 1 . . . Impact Corruptions 4 | . . . . . . . . . 1 3 . . Robots Melted 1 | . . . . . . . . . . . 1 . Combat Hostiles . | . . . . . . . . . . . . . Parts Melted 5 | . . . . . 2 . . . . . 3 . Heat Transferred 1040 | 75 . 299 . . . . . . . . 666 . Parts Sabotaged 4 | . . . . . . . . . . . . 4 Parts Stolen . | . . . . . . . . . . . . . Parts Stripped . | . . . . . . . . . . . . . Power Chain Reactions . | . . . . . . . . . . . . . Alert | -11 -10 -10 -7 -5 -4 -4 -4 -3 -3 -2 -1 -1 ------- Run | Yrd Mat Sub Scr Fac Fac Ext Cet Res Tes Res Acc Gar Maximum Alert Level 3 | . . . . 1 . 3 3 2 3 2 1 . Low Security (%) 56 | 100 100 . . 75 100 61 . . . . 71 100 Level 1 16 | . . . . 24 . 16 4 29 32 30 28 . Level 2 23 | . . . . . . 10 88 70 47 69 . . Level 3 3 | . . . . . . 10 6 . 19 . . . Level 4 . | . . . . . . . . . . . . . Level 5 . | . . . . . . . . . . . . . High Security . | . . . . . . . . . . . . . Max Security . | . . . . . . . . . . . . . Peak Influence 860 | 5 103 . . 315 112 851 860 609 799 628 304 180 Initial 504 | . . . . . 62 17 463 504 327 435 304 150 Average 223 | 1 26 . . 99 38 219 535 446 513 464 191 154 Influence Increases 6531 | 10 289 . . 856 547 1453 1101 471 904 606 264 30 Destroy 0b10 Robot/C 2860 | . 160 . . 440 380 620 480 160 320 260 40 . Destroy 0b10 Robot/NC 155 | 10 15 . . 10 15 25 10 10 35 20 5 . Destroy Leader 508 | . 36 . . 100 70 54 50 52 74 50 22 . Allied During Kill 1718 | . . . . . . 640 537 222 319 . . . Successful Hack 248 | . 46 . . 62 46 35 . . 24 . 35 . Disable Machine 240 | . 15 . . 45 15 30 . 15 90 . 30 . Destroy Structure 367 | . 2 . . 34 6 34 24 12 42 171 42 . Partial Spotted 45 | . . . . . . . . . . . 45 . Lose Combat Pursuer 390 | . 15 . . 165 15 15 . . . 105 45 30 Influence Decreases 6381 | 10 252 37 . 728 639 661 1087 730 712 874 583 68 Entered New Map 1643 | . . 18 . . 66 19 365 338 256 340 203 38 Time Decay 3116 | 10 252 . . 398 430 452 452 342 326 294 160 . Lost Part 742 | . . 19 . 170 133 30 30 10 10 240 70 30 Lost Ally 580 | . . . . 10 10 160 240 40 120 . . . Purge Threat 300 | . . . . 150 . . . . . . 150 . Squads Dispatched 41 | . . . . 10 6 2 1 6 6 8 2 . Investigation 13 | . . . . 5 3 1 1 1 1 1 . . Extermination 11 | . . . . 5 2 . . . 2 1 1 . Reinforcement 14 | . . . . . 1 1 . 5 3 3 1 . Assault 3 | . . . . . . . . . . 3 . . Garrison . | . . . . . . . . . . . . . Intercept . | . . . . . . . . . . . . . Searches Triggered . | . . . . . . . . . . . . . Construction Impeded 1 | . . . . . . . . . . 1 . . Haulers Reinforced 1 | . . . . . . . . 1 . . . . Active Scanning Responses . | . . . . . . . . . . . . . Cargo Convoy Interrupts . | . . . . . . . . . . . . . Stealth | -11 -10 -10 -7 -5 -4 -4 -4 -3 -3 -2 -1 -1 --------- Run | Yrd Mat Sub Scr Fac Fac Ext Cet Res Tes Res Acc Gar Distress Signals 16 | . 2 . . . 2 3 2 2 2 1 2 . Communications Jammed . | . . . . . . . . . . . . . Distress Signals . | . . . . . . . . . . . . . Times Spotted 272 | . 20 9 . 36 26 39 26 16 15 34 28 23 Peak Tracking Total 23 | . 4 3 . 7 5 6 5 4 3 9 16 23 Tactical Retreats 16 | . 1 . . 4 1 1 . . . 6 2 1 Traps | -11 -10 -10 -7 -5 -4 -4 -4 -3 -3 -2 -1 -1 ------- Run | Yrd Mat Sub Scr Fac Fac Ext Cet Res Tes Res Acc Gar Traps Triggered 8 | . . . . 3 1 2 . 1 . 1 . . Indirectly . | . . . . . . . . . . . . . Trap Hack Attempts . | . . . . . . . . . . . . . Triggered . | . . . . . . . . . . . . . Disarmed . | . . . . . . . . . . . . . Reprogrammed . | . . . . . . . . . . . . . Reused . | . . . . . . . . . . . . . Traps Extracted . | . . . . . . . . . . . . . Installed . | . . . . . . . . . . . . . Triggered . | . . . . . . . . . . . . . Most Traps Carried 1 | . . 1 1 . . . . . . . . . Machines | -11 -10 -10 -7 -5 -4 -4 -4 -3 -3 -2 -1 -1 ---------- Run | Yrd Mat Sub Scr Fac Fac Ext Cet Res Tes Res Acc Gar Machines Disabled 16 | . 1 . . 3 1 2 . 1 6 . 2 . Max in Single Turn 1 | . 1 . . 1 1 . . 1 1 . 1 . Garrison Access 2 | . . . . 1 . . . 1 . . . . Energy Cycler 1 | . . . . . . 1 . . . . . . Machines Repaired . | . . . . . . . . . . . . . Machines Dismantled . | . . . . . . . . . . . . . Machines Sabotaged . | . . . . . . . . . . . . . Overloaded Fab Kills . | . . . . . . . . . . . . . Hacking | -11 -10 -10 -7 -5 -4 -4 -4 -3 -3 -2 -1 -1 --------- Run | Yrd Mat Sub Scr Fac Fac Ext Cet Res Tes Res Acc Gar Machines Accessed 64 | . 8 . 8 18 9 8 1 1 3 2 6 . Terminals 34 | . 6 . . 7 5 8 1 . 2 1 4 . Fabricators 3 | . . . . 3 . . . . . . . . Repair Stations 3 | . . . . 1 2 . . . . . . . Recycling Units 9 | . 2 . . 4 1 . . . . 1 1 . Scanalyzers 3 | . . . . 2 . . . . 1 . . . Garrison Access 4 | . . . . 1 1 . . 1 . . 1 . Total Hacks 152 | . 21 . 21 43 25 17 4 1 7 3 10 . Successful 87 | . 14 . 21 22 14 9 . 1 2 1 3 . Failed 64 | . 7 . . 20 11 8 4 . 5 2 7 . Catastrophic 16 | . . . . 5 4 . 1 . 1 1 4 . Database Lockouts 1 | . . . . 1 . . . . . . . . Manual 39 | . 8 . . 13 8 4 1 . . 2 3 . Terminals 76 | . 17 . . 16 9 17 4 . 5 1 7 . Fabricators 9 | . . . . 9 . . . . . . . . Repair Stations 14 | . . . . 3 11 . . . . . . . Recycling Units 18 | . 4 . . 8 2 . . . . 2 2 . Scanalyzers 8 | . . . . 6 . . . . 2 . . . Garrison Access 6 | . . . . 1 3 . . 1 . . 1 . Terminal Hacks 48 | . 7 . 21 5 4 8 . . 1 . 2 . Record 21 | . . . 19 . . 1 . . 1 . . . Part Schematic 1 | . . . . 1 . . . . . . . . Prototype ID Bank 5 | . 3 . . . 1 1 . . . . . . Open Door 8 | . . . 1 . 1 6 . . . . . . Open DSF 1 | . . . . . 1 . . . . . . . Branch Access Points 2 | . . . . 1 1 . . . . . . . Terminal Index 1 | . . . . . . . . . . . 1 . Unreport Threat 2 | . . . . 1 . . . . . . 1 . Locate Traps 5 | . 3 . . 2 . . . . . . . . Hauler Manifests 1 | . 1 . . . . . . . . . . . Proto ID Catalog 1 | . . . 1 . . . . . . . . . Fabricator Hacks 4 | . . . . 4 . . . . . . . . Network Status 1 | . . . . 1 . . . . . . . . Load Schematic 2 | . . . . 2 . . . . . . . . Build 1 | . . . . 1 . . . . . . . . Repair Station Hacks 8 | . . . . 2 6 . . . . . . . Scan Component 4 | . . . . 1 3 . . . . . . . Repair 4 | . . . . 1 3 . . . . . . . Recycling Unit Hacks 4 | . 2 . . 1 1 . . . . . . . Report Inventory 3 | . 1 . . 1 1 . . . . . . . Retrieve Components 1 | . 1 . . . . . . . . . . . Scanalyzer 2 | . . . . 1 . . . . 1 . . . Retrieve Study 2 | . . . . 1 . . . . 1 . . . Garrison Access Hacks 3 | . . . . 1 . . . 1 . . 1 . Unlock Access 1 | . . . . . . . . . . . 1 . Seal Access 2 | . . . . 1 . . . 1 . . . . Unauthorized Hacks 18 | . 5 . . 8 3 1 . . . 1 . . Terminals 11 | . 5 . . 3 2 1 . . . . . . Track 2 | . 2 . . . . . . . . . . . Assimilate 3 | . . . . 2 1 . . . . . . . Botnet 5 | . 2 . . 1 1 1 . . . . . . Operators 1 | . 1 . . . . . . . . . . . Fabricators . | . . . . . . . . . . . . . Repair Stations . | . . . . . . . . . . . . . Recycling Units 7 | . . . . 5 1 . . . . 1 . . Recyclers 1 | . . . . 1 . . . . . . . . Fedlink 6 | . . . . 4 1 . . . . 1 . . Scanalyzers . | . . . . . . . . . . . . . Garrison Access . | . . . . . . . . . . . . . Data Cores Recovered . | . . . . . . . . . . . . . Used . | . . . . . . . . . . . . . Hacking Detections 39 | . 5 . . 15 5 4 1 . 2 2 5 . Full Trace Events 6 | . . . . 1 2 1 1 . 1 . . . Feedback Events 1 | . . . . . . . . . 1 . . . Corruption 1 | . . . . . . . . . 1 . . . Feedback Blocked . | . . . . . . . . . . . . . Robot Schematics Acquired . | . . . . . . . . . . . . . Robots Built . | . . . . . . . . . . . . . Authchips . | . . . . . . . . . . . . . Time . | . . . . . . . . . . . . . Total Robot Build Rating . | . . . . . . . . . . . . . Part Schematics Acquired 1 | . . . . 1 . . . . . . . . Parts Built 1 | . . . . 1 . . . . . . . . Authchips . | . . . . . . . . . . . . . Time 139 | . . . . 139 . . . . . . . . Total Part Build Rating 9 | . . . . 9 . . . . . . . . Part Studies Acquired 2 | . . . . 1 . . . . 1 . . . Parts Repaired 4 | . . . . 1 3 . . . . . . . Time 182 | . . . . 44 138 . . . . . . . Parts Recycled . | . . . . . . . . . . . . . Recycled Matter . | . . . . . . . . . . . . . Retrieved Matter . | . . . . . . . . . . . . . Retrieved Components 3 | . 3 . . . . . . . . . . . Parts Scanalyzed . | . . . . . . . . . . . . . Part Schematics Acquired . | . . . . . . . . . . . . . Parts Damaged . | . . . . . . . . . . . . . Bothacking | -11 -10 -10 -7 -5 -4 -4 -4 -3 -3 -2 -1 -1 ------------ Run | Yrd Mat Sub Scr Fac Fac Ext Cet Res Tes Res Acc Gar Used RIF Installer . | . . . . . . . . . . . . . Robots Hacked . | . . . . . . . . . . . . . Non-combat . | . . . . . . . . . . . . . Combat . | . . . . . . . . . . . . . Robot Hacks Applied . | . . . . . . . . . . . . . Relay Couplers Released . | . . . . . . . . . . . . . Fabnet Peak Effective % . | . . . . . . . . . . . . . Robots Rewired 24 | . . . . . . 24 . . . . . . Allies Hacked . | . . . . . . . . . . . . . Hacks Repelled . | . . . . . . . . . . . . . Allies | -11 -10 -10 -7 -5 -4 -4 -4 -3 -3 -2 -1 -1 -------- Run | Yrd Mat Sub Scr Fac Fac Ext Cet Res Tes Res Acc Gar Total Allies 38 | . . . . 1 1 31 5 . . . . . Largest Group 22 | . . . . 1 1 22 21 13 9 1 . . Highest-Rated Group 1001 | . . . . 26 10 1001 969 756 611 84 . . Highest-Rated Ally 159 | . . . . 26 10 159 149 96 96 84 . . Initial UFD Resources 90 | . . . . 39 60 70 70 73 73 76 90 90 Total Orders . | . . . . . . . . . . . . . Ally Attacks 421 | . . . . . . 186 151 25 59 . . . Total Damage 11792 | . . . . . . 4889 3639 822 2442 . . . Kills 68 | . . . . . . 24 20 5 19 . . . Allies Corrupted 1 | . . . . . . . . . 1 . . . Allies Melted . | . . . . . . . . . . . . . Intel | -11 -10 -10 -7 -5 -4 -4 -4 -3 -3 -2 -1 -1 ------- Run | Yrd Mat Sub Scr Fac Fac Ext Cet Res Tes Res Acc Gar Active Infowar (turns) 6755 | 29 1111 538 . 2163 870 . . 568 639 440 331 66 Optics 655 | . . 254 . . . . . . 4 . 331 66 Sensors 1837 | . . . . 496 870 . . . . 372 99 . IFF 627 | . . . . 627 . . . . . . . . Terrain 1582 | . . . . . . . . 568 639 375 . . Seismic 2630 | 29 1111 284 . 1022 . . . . . . 136 48 Jamming 19 | . . . . 19 . . . . . . . . Robot Analysis Total . | . . . . . . . . . . . . . Derelict Logs Recovered 3 | . . 1 2 . . . . . . . . . Drone Launches . | . . . . . . . . . . . . . Drone Recoveries . | . . . . . . . . . . . . . Exploration | -11 -10 -10 -7 -5 -4 -4 -4 -3 -3 -2 -1 -1 ------------- Run | Yrd Mat Sub Scr Fac Fac Ext Cet Res Tes Res Acc Gar Turns Passed 15376 | 113 1233 1507 2949 2891 1345 1647 1133 775 720 655 332 76 Spaces Moved 9519 | 50 553 809 1973 1961 736 924 538 490 495 393 469 128 Core 194 | 18 . . . . . . . . . 45 16 115 Treads 1454 | 32 553 809 59 . . . . . . . 1 . Legs 5805 | . . . 293 1961 736 924 538 490 495 348 20 . Wheels 1621 | . . . 1621 . . . . . . . . . Hover . | . . . . . . . . . . . . . Flight 445 | . . . . . . . . . . . 432 13 Fastest Speed 34 | 50 160 160 125 116 118 120 120 120 113 50 34 35 Average Speed 128 | 148 160 160 146 120 120 120 169 123 117 105 39 48 Slowest Speed 270 | 160 160 160 270 127 122 190 190 126 126 120 250 50 Overloaded Moves . | . . . . . . . . . . . . . Propulsion Burnouts . | . . . . . . . . . . . . . Robots Hopped 8 | . . . . . . 1 . . . . 7 . Potential Cave-ins . | . . . . . . . . . . . . . Cave-ins Triggered . | . . . . . . . . . . . . . Exploration Rate (%) 43 | 3 88 54 93 35 18 86 67 15 62 14 12 20 Regions Visited 12 Branch Regions 5 Pre-discovered Areas 3 | . . 1 1 1 . . . . . . . . Known Exits Taken 8 | . . . . 1 1 1 1 1 1 1 1 . Unknown Exits Taken 4 | 1 1 1 1 . . . . . . . . . Scrap Searched 8 | . . . 8 . . . . . . . . . Spaces Dug 49 | . . . . 17 3 2 . 3 3 10 11 . Terrain Destroyed 136 | . . 31 . 17 3 2 . 3 3 61 16 . Melee 38 | . . . . 17 3 2 . 3 3 10 . . Projectile 16 | . . . . . . . . . . . 16 . AOE 82 | . . 31 . . . . . . . 51 . . Terrain Rammed . | . . . . . . . . . . . . . Walls Destroyed . | . . . . . . . . . . . . . Machines Disabled . | . . . . . . . . . . . . . Actions | -11 -10 -10 -7 -5 -4 -4 -4 -3 -3 -2 -1 -1 --------- Run | Yrd Mat Sub Scr Fac Fac Ext Cet Res Tes Res Acc Gar Total 11927 | 79 834 932 2045 2312 1082 1399 750 643 601 539 570 141 Wait 1214 | 4 217 53 4 156 221 171 163 95 31 44 47 8 Move 9491 | 49 552 808 1972 1960 735 921 537 489 494 392 454 128 Hop 8 | . . . . . . 1 . . . . 7 . Pick Up 103 | 7 14 7 22 12 9 6 10 8 5 1 2 . Fast Attach 118 | 8 . . 4 26 23 13 4 8 14 6 11 1 Attach 53 | . . 7 1 13 4 5 2 2 . 14 4 1 Detach 15 | 1 . . 2 2 1 1 . 1 . 6 1 . Swap 96 | 1 10 14 8 15 3 10 8 8 13 6 . . Drop 161 | 2 7 4 32 21 16 14 15 17 21 5 7 . Fire 121 | 6 33 39 . . . . . . . 6 37 . Melee 316 | . . . . 106 69 40 11 15 23 52 . . Ram 3 | . . . . . . . . . . . . 3 Kick 11 | . . . . 1 1 2 . . . 7 . . Crush 2 | 1 1 . . . . . . . . . . . Escape Stasis 5 | . . . . . . 5 . . . . . . Rewire 210 | . . . . . . 210 . . . . . . Trap . | . . . . . . . . . . . . . Miscellaneous . | . . . . . . . . . . . . . Route ------- -11/Scrapyard -10/Materials (discovered 5 exits: [*Mat x2] / [*Min x2] / [*Sub]) -10/Subcaves (discovered 3 exits: [*Mat x2] / *Scr) -7/Scraptown (discovered 2 exits: *Fac x2) -5/Factory (discovered 6 exits: *Fac x4 / Upp x2) -4/Factory (discovered 5 exits: Upp x2 / *Ext x2 / Arm) -4/Extension (discovered 2 exits: *Res / *Cet) -4/Cetus (discovered 2 exits: *Res / *Arc) -3/Research (discovered 2 exits: *Res / *Tes) -3/Testing -2/Research -1/Access -1/Garrison History --------- Turn | Location | Event 14 | -11/Scrapyard | Discovered new exit (range 14) 114 | -11/Scrapyard | Entered Materials 304 | -10/Materials | Build established: Mutant 349 | -10/Materials | Discovered new exit (range 10) 668 | -10/Materials | Discovered new exit (range 9) 1031 | -10/Materials | Discovered new exit (range 13) 1111 | -10/Materials | Discovered new exit (range 5) 1161 | -10/Materials | Discovered new exit (range 16) 1347 | -10/Materials | Entered Subcaves 1348 | -10/Subcaves | Approached by a straggling Scientist 1372 | -10/Subcaves | Learned location of Mines (-10) 1372 | -10/Subcaves | Discovered new exit (range 13) 1420 | -10/Subcaves | Lost 3 parts (1n1u1w) 1619 | -10/Subcaves | Discovered new exit (range 11) 2349 | -10/Subcaves | A Subdweller sparked back to life 2358 | -10/Subcaves | Core integrity fell below 50% 2820 | -10/Subcaves | Scientist uncovered a shortcut to Scraptown 2854 | -10/Subcaves | Entered Scraptown 3096 | -7/Scraptown | Heard Great Nut preacher, LISTEN AND RECITE! 3188 | -7/Scraptown | Scanned Subdweller tech in exchange for log data 3191 | -7/Scraptown | Learned Research non-interactive machine intel 3192 | -7/Scraptown | Learned location of Extension (-4) 3212 | -7/Scraptown | Discovered new exit (range 7) 3310 | -7/Scraptown | Visited Cave Peace 3349 | -7/Scraptown | Visited Cyclists 3372 | -7/Scraptown | Visited SPCMW 3393 | -7/Scraptown | Visited UFD Registry 3415 | -7/Scraptown | Visited IN-MT5's Study 3441 | -7/Scraptown | Visited Red Mages 3776 | -7/Scraptown | Visited Awakened 3814 | -7/Scraptown | Visited Spacefarers 3912 | -7/Scraptown | Registered with UFD as "Ionbucket" 3950 | -7/Scraptown | Visited Derelict Rescue Squad 4055 | -7/Scraptown | Visited Chapter 10 4094 | -7/Scraptown | Visited Junk Repository 4297 | -7/Scraptown | Visited Science Guys 4343 | -7/Scraptown | Visited Supply Room 4364 | -7/Scraptown | Visited Sword Containment 4381 | -7/Scraptown | Found Prototype Slashing Weapon 4384 | -7/Scraptown | Identified Companion Sword 4418 | -7/Scraptown | Visited Observation Area 4469 | -7/Scraptown | Visited DA-N13 Charitable Foundation 4480 | -7/Scraptown | Found DCF Scrap (31 items) 4544 | -7/Scraptown | Visited Curators Association 4647 | -7/Scraptown | Entered Cyclist Reading Room 4909 | -7/Scraptown | Discovered new exit (range 3) 5579 | -7/Scraptown | Found Scrap Suit 5720 | -7/Scraptown | Met Optimus 5720 | -7/Scraptown | Accepted into 0bPrime 5803 | -7/Scraptown | Entered Factory 5803 | -5/Factory | Evolved 10 slots: Propulsion x2, Utility x6, Weapon x2 5969 | -5/Factory | Loaded intel: 8 recycling unit locations 6176 | -5/Factory | Build established: Gladiator 6313 | -5/Factory | Learned location of Protoforge (-2) 6447 | -5/Factory | Central database locked down 6555 | -5/Factory | Discovered new exit (range 4) 6715 | -5/Factory | Repaired Imp. Medium Armor Plating 6768 | -5/Factory | Identified exit to Factory 6874 | -5/Factory | Discovered exit to Factory (range 6) 7070 | -5/Factory | Identified exit to Upper Caves 7281 | -5/Factory | Fabricated Centrium Leg? 7578 | -5/Factory | Lost 7 parts (1p2n3u1w) 7863 | -5/Factory | Lost 3 parts (2n1w) 8027 | -5/Factory | Discovered exit to Factory (range 8) 8136 | -5/Factory | Discovered exit to Factory (range 14) 8313 | -5/Factory | Build established: Scavenger-Gladiator 8498 | -5/Factory | System corruption reached 10% 8694 | -5/Factory | Entered another Factory area 8694 | -4/Factory | Evolved 2 slots: Power x1, Utility x1 8698 | -4/Factory | Identified exit to DSF 9086 | -4/Factory | Build established: Gladiator 9258 | -4/Factory | Loaded intel: 8 recycling unit locations 9368 | -4/Factory | Repaired Titanium Leg+ 9419 | -4/Factory | Repaired Flexi-carbon Leg 9471 | -4/Factory | Repaired Adv. Sensor Array 9626 | -4/Factory | Identified exit to Upper Caves 9626 | -4/Factory | Identified exit to Extension 9626 | -4/Factory | Identified exit to Armory 9727 | -4/Factory | Lost 8 parts (2p3n3u) 9762 | -4/Factory | Found Prototype Device 9762 | -4/Factory | Identified Adv. EM Shield 9968 | -4/Factory | Lost 4 parts (1p2n1w) 10039 | -4/Factory | Entered Extension 10109 | -4/Extension | Rescued a captive Derelict 10201 | -4/Extension | Rescued a captive Derelict 10253 | -4/Extension | Rescued A7 10426 | -4/Extension | Build established: Scavenger-Gladiator 10798 | -4/Extension | Build established: Commander-Gladiator 10940 | -4/Extension | Spotted B-86 Titan 10957 | -4/Extension | Allies destroyed B-86 Titan 10962 | -4/Extension | Spotted B-86 Titan 10975 | -4/Extension | Allies destroyed B-86 Titan 11120 | -4/Extension | Rescued a captive Derelict 11120 | -4/Extension | Rescued a captive Derelict 11259 | -4/Extension | Core integrity fell below 50% 11277 | -4/Extension | Lost 3 allies 11340 | -4/Extension | Rescued a captive Derelict 11419 | -4/Extension | Energy Cycler disabled 11420 | -4/Extension | Rescued a captive Derelict 11420 | -4/Extension | Rescued a captive Derelict 11446 | -4/Extension | Rescued a captive Derelict 11613 | -4/Extension | Discovered new exit (range 10) 11614 | -4/Extension | Discovered new exit (range 6) 11634 | -4/Extension | Identified exit to Research 11648 | -4/Extension | Identified exit to Cetus 11686 | -4/Extension | Entered Cetus 11686 | -4/Cetus | Accompanied by 21 allies (A7) 11691 | -4/Cetus | Acquired a Cetus Manufacturing Module code from A7 11701 | -4/Cetus | Spotted Cetus Guard 11701 | -4/Cetus | Spotted Cetus Guard 11703 | -4/Cetus | Spotted Cetus Guard 11703 | -4/Cetus | Spotted Cetus Guard 11719 | -4/Cetus | Allies destroyed Cetus Guard 11721 | -4/Cetus | Destroyed Cetus Guard 11726 | -4/Cetus | Allies destroyed Cetus Guard 11730 | -4/Cetus | Allies destroyed Cetus Guard 11755 | -4/Cetus | Lost 5 allies 11802 | -4/Cetus | Discovered new exit (range 15) 11823 | -4/Cetus | Spotted Cetus Guard 11824 | -4/Cetus | Spotted Cetus Guard 11825 | -4/Cetus | Spotted Cetus Guard 11830 | -4/Cetus | Spotted Cetus Guard 11836 | -4/Cetus | Allies destroyed Cetus Guard 11842 | -4/Cetus | Discovered exit to Research (range 16) 11847 | -4/Cetus | Destroyed Cetus Guard 11848 | -4/Cetus | Allies destroyed Cetus Guard 11851 | -4/Cetus | Allies destroyed Cetus Guard 11860 | -4/Cetus | Met Revision 17 11862 | -4/Cetus | Lost 3 parts (2n1u) 11876 | -4/Cetus | Lost 3 allies 11982 | -4/Cetus | Extracted ID and sensor layout for unrecognized location from A7's data core 12323 | -4/Cetus | Identified exit to Archives 12436 | -4/Cetus | Security sweep announced 12539 | -4/Cetus | Lost 3 allies 12541 | -4/Cetus | Started Cetus Manufacturing Module 12566 | -4/Cetus | Manufactured an Enhanced Grunt 12591 | -4/Cetus | Manufactured an Enhanced Grunt 12616 | -4/Cetus | Manufactured an Enhanced Grunt 12641 | -4/Cetus | Manufactured an Enhanced Grunt 12666 | -4/Cetus | Manufactured an Enhanced Grunt 12819 | -4/Cetus | Entered Research 12819 | -3/Research | Accompanied by 13 allies 12819 | -3/Research | Evolved 2 slots: Propulsion x1, Utility x1 12820 | -3/Research | Loaded intel: 79 non-interactive machine locations 12871 | -3/Research | Discovered new exit (range 16) 12908 | -3/Research | Identified exit to Research 13019 | -3/Research | Revision forces began assault on 0b10 13200 | -3/Research | Met up with Revision 17++ 13519 | -3/Research | Research terminal network offline 13529 | -3/Research | Discovered new exit (range 11) 13547 | -3/Research | Identified exit to Testing 13594 | -3/Research | Entered Testing 13594 | -3/Testing | Accompanied by 9 allies 13614 | -3/Testing | Found Prototype Device 13614 | -3/Testing | Identified 2N-1CE's Frost Array 13802 | -3/Testing | Lost 3 allies 13806 | -3/Testing | Found Prototype Launcher 13806 | -3/Testing | Identified Hellfire Missile Launcher 13818 | -3/Testing | Found Prototype Processor 13818 | -3/Testing | Identified Spectral Analyzer 13981 | -3/Testing | Found Prototype Leg 13981 | -3/Testing | Identified Myomer Exoskeleton 14002 | -3/Testing | Build established: Scavenger-Gladiator 14085 | -3/Testing | Spotted Striker 14157 | -3/Testing | Discovered exit to Research (range 18) 14192 | -3/Testing | Found Prototype Launcher 14192 | -3/Testing | Identified Tesla Bomb Launcher 14314 | -3/Testing | Entered Research 14314 | -2/Research | Accompanied by 1 ally 14314 | -2/Research | Evolved 2 slots: Utility x2 14339 | -2/Research | Loaded intel: 5 recycling unit locations 14564 | -2/Research | First assault squad dispatched 14744 | -2/Research | System corruption reached 10% 14786 | -2/Research | Lost 12 parts (2p1n6u3w) 14854 | -2/Research | Found Hvy. Insulated Plating 14968 | -2/Research | Discovered new exit (range 2) 14968 | -2/Research | Identified exit to Access 14969 | -2/Research | Entered Access 14969 | -1/Access | Evolved 2 slots: Propulsion x1, Weapon x1 14973 | -1/Access | Lost 8 parts (1p1n5u1w) 15297 | -1/Access | Identified exit to Garrison 15301 | -1/Access | Entered Garrison 15324 | -1/Garrison | Lost 7 parts (1p3n2u1w) 15351 | -1/Garrison | Core integrity fell below 50% 15361 | -1/Garrison | Core integrity fell below 20% 15367 | -1/Garrison | Spotted B-99 Colossus 15373 | -1/Garrison | Triggered checkpoint 15373 | -1/Garrison | Triggered checkpoint 15377 | -1/Garrison | Destroyed by S-43 Plague with Heavy Machine Gun Last Messages --------------- 15354_ Slammed into G-73 Enforcer. 15357_ Graphene Brace destroyed. 15361_ P-80 Master resets G-73 Enforcer, system corruption cleaned. [Achievement: Let Me Out Of Here] 15367_ Adv. Visual Processing Unit blown off. 15367_ Hacking Suite blown off. 15367_ Broken Adv. Target Analyzer blown off. 15367_ Imp. Target Analyzer blown off. 15367_ E-15 Imp destroyed. 15367_ Acquired 20 matter. 15368_ Acquired Cesium-ion Thruster. 15370_ Slug penetrates Wall. 15373_ Beams of light sweep through the air. An alarm sounds. 15374_ Cesium-ion Thruster destroyed. 15374_ Knocked back. 15374_ S-43 Plague knocked back. 15374_ Penetrated by Slug. 15374_ Slug penetrates Reinforced Barrier. Map ----- +----------------------------------------------------+ | ?????????????????????????????????????????????????? | | ?????????????????????????????????????????????????? | | ?????????????????????????????????????????????????? | | ?????????????????????????????????????????????????? | | ?????????????????????????????????????????????????? | | ?????????????????????????????????????????????????? | | ?????????????????????????????????????????????????? | | ?????????????????????????????????????????????????? | | ?????????????????????????????????????????????????? | | ?????????????????????????????????????????????????? | | ????????????????????????? ??????????????????????? | | ????????????????????????? ???????? ???????????? | | ???????????????????????## ##""""## #??????????? | | ???????????????????????# #??????????? | | ???????????????????????# #??????????? | | ???????????????????????# #??????????? | | ???????????????????????# g ##l ## #??????????? | | ???????????????????????# ## ## ###????????? | | ???????????????????????" #????????? | | ???????????????????????" #????????? | | ???????????????????????" #????????? | | ???????????????????????" gg?????????? | | ???????????????????????# ## ;; g #??????????? | | ?????????????########### ## ## ############ | | ?????????????# ^ # | | ?????????????# @ =/ ^ # | | ?????????????# e %% ! # | | ?????????????# ############s ############# # | | ????????????????????????????# ss#???????????# # | | ????????????????????????????######???????????# # | | ?????????????????????????????????????????????# # | | ?????????????????????????????????????????????# # | | ?????????????????????????????????????????????# # | | ?????????????????????????????????????????????# # | | ?????????????????????????????????????????????# | | ?????????????????????????????????????????????# | | ?????????????????????????????????????????????# # | | ?????????????????????????????????????????????# # | | ?????????????????????????????????????????????# # | | ?????????????????????????????????????????????# # | | ?????????????????????????????????????????????# # | | ?????????????????????????????????????????????# # | | ?????????????????????????????????????????????# # | | ?????????????????????????????????????????????# # | | ?????????????????????????????????????????????# # | | ?????????????????????????????????????????????# # | | ?????????????????????????????????????????????# # | | ?????????????????????????????????????????????# # | | ?????????????????????????????????????????????# # | | ?????????????????????????????????????????????# # | +----------------------------------------------------+ Best States ------------- Heat Dissipation 52 Energy Generation 45 Energy Capacity 565 Matter Stores 300 Matter Capacity 300 Sight Range 24 Robot Scan Range 16 Terrain Scan Range 20 Terrain Scan Density 210 Jamming Range 14 Armor Coverage 975 Resistance: EM 50 Propulsion Shielding 33 Weapon Shielding 33 Evasion (%) 65 Melee Accuracy 24 Target Analysis 11 Core Analysis 6 Armor Integrity Analysis 40 Recoil Reduction 2 Force Boost 30 Offensive Hacking 10 Item Schematics ----------------- Imp. Thunder Leg | -5/Factory | Hacked Robot Schematics ------------------ None Fabricated ------------ Centrium Leg | x1 | -5/Factory | Preloaded Repaired ---------- Imp. Medium Armor Plating | 12% | -5/Factory Titanium Leg | 1% | -4/Factory Flexi-carbon Leg | 15% | -4/Factory Adv. Sensor Array | 25% | -4/Factory Studied --------- Titanium Leg | -5/Factory | Hacked Med. Armored Exoskeleton | -3/Testing | Hacked Alien Tech Used ----------------- None Achievements -------------- Hulk Smash Let Me Out Of Here Nice Directions, Buddy Ooh, Shiny! Revolutionary Research Challenges ------------ None Game ------ Seed MeleeBehemothDirector Manual? 0 Play Time 02:37:12 Cumulative 135.0 hours Start 2026.07.12 @ 16:40:53 End 2026.07.12 @ 19:31:45 Sessions 3 Manual Loads 0 Difficulty Rogue Special Mode None Game No. 62 Rogue 61 Adventurer 1 Explorer 0 Win Type - Total 1 Types 1/0/0/0/0/0/0/0/0/0 Lore% 49 Gallery% 46 Achievement% 38 Wizard Run 0 Options --------- Layout 1 ASCII 0 Keyboard 0 Movement Numpad Keybinds 0 Fullscreen 1 Font 24/Smallcaps Map View 50x35 Zoom Use 0% Tactical HUD 1 Map Filters NONE Filters NONE Steam 1 RUN: 4c9d9541-4456-45c6-beff-d6e3d4a789c6